bitfinex-derivatives/quotes_BTCF0:USTF0_20251204
["timestamp","ask_amount","ask_price","bid_price","bid_amount"]
[1764821674856,0.08819016,93487.0,93486.0,0.04529315]
[1764821675159,0.08819016,93487.0,93486.0,0.07379315]
[1764821675960,0.08819016,93487.0,93486.0,0.07279315]
[1764821677751,0.08714016,93487.0,93486.0,0.07279315]
[1764821678061,0.05905016,93487.0,93486.0,0.07279315]
[1764821678251,0.08714016,93487.0,93486.0,0.07279315]
[1764821678649,0.05905016,93487.0,93486.0,0.07279315]
[1764821679056,0.05905016,93487.0,93486.0,0.07479315]
[1764821679560,0.05905016,93487.0,93486.0,0.07279315]
[1764821679761,0.08714016,93487.0,93486.0,0.07579315]
[1764821680261,0.08714016,93487.0,93486.0,0.07679315]
[1764821680649,0.00011125,93494.0,93493.0,0.0106951]
[1764821680960,0.00011125,93494.0,93493.0,0.0672351]
[1764821681155,0.03011125,93494.0,93493.0,0.0672351]
[1764821681763,0.00011125,93494.0,93493.0,0.0672351]
[1764821683056,0.05844042,93504.0,93503.0,0.0672339]
[1764821683247,0.08844042,93504.0,93503.0,0.0672339]
[1764821685159,0.08844042,93504.0,93503.0,0.0692339]
[1764821685554,0.09913422,93504.0,93503.0,0.03014]
[1764821685756,0.09913422,93504.0,93503.0,0.07886948]
[1764821686159,0.09913422,93504.0,93503.0,0.002]
[1764821686657,0.0868043,93500.0,93499.0,0.07686948]
[1764821686874,0.0689752,93492.0,93491.0,0.07686948]
[1764821687057,0.07611,93490.0,93489.0,0.07686948]
[1764821687364,0.10611,93490.0,93489.0,0.10500948]
[1764821688355,0.10611,93490.0,93489.0,0.13340948]
[1764821689057,0.10611,93490.0,93489.0,0.13440948]
[1764821689658,0.10611,93490.0,93489.0,0.05754]
[1764821693164,0.0585,93490.0,93489.0,0.05754]
[1764821693569,0.03,93490.0,93489.0,0.05754]
[1764821693865,0.08828,93490.0,93489.0,0.05754]
[1764821694859,0.03,93490.0,93489.0,0.05754]
[1764821699062,0.0585,93490.0,93489.0,0.05754]
[1764821699672,0.08828,93490.0,93489.0,0.05754]
[1764821701372,0.05828,93500.0,93499.0,0.05654]
[1764821701573,0.0585,93500.0,93499.0,0.0672344]
[1764821702067,0.08828,93500.0,93499.0,0.0672344]
[1764821702575,0.08928,93500.0,93499.0,0.0672344]
[1764821702773,0.09028,93500.0,93499.0,0.0672344]
[1764821703561,0.088,93500.0,93499.0,0.0672344]
[1764821704474,0.086,93500.0,93499.0,0.0672344]
[1764821704674,0.086,93500.0,93499.0,0.0692344]
[1764821704971,0.086,93500.0,93499.0,0.05854]
[1764821705170,0.10353,93500.0,93499.0,0.05654]
[1764821705376,0.056,93493.0,93492.0,0.0576]
[1764821705577,0.086,93493.0,93492.0,0.0576]
[1764821706281,0.086,93493.0,93492.0,0.02908]
[1764821706774,0.086,93493.0,93492.0,0.0576]
[1764821707777,0.086,93493.0,93492.0,0.0616]
[1764821708977,0.086,93493.0,93492.0,0.0808847]
[1764821709871,0.086,93493.0,93492.0,0.1099647]
[1764821710774,0.086,93493.0,93492.0,0.1384847]
[1764821711279,0.086,93493.0,93492.0,0.0808847]
[1764821711466,0.086,93493.0,93492.0,0.004]
[1764821711777,0.086,93493.0,93492.0,0.03308]
[1764821712169,0.086,93493.0,93492.0,0.004]
[1764821712875,0.086,93493.0,93492.0,0.03308]
[1764821716170,0.086,93493.0,93492.0,0.0616]
[1764821718981,0.086,93493.0,93492.0,0.1384847]
[1764821719176,0.086,93493.0,93492.0,0.0616]
[1764821719974,0.03,93493.0,93492.0,0.0616]
[1764821721784,0.03,93493.0,93492.0,0.15774996]
[1764821722282,0.02815042,93504.0,93503.0,0.0576]
[1764821722479,0.05815042,93504.0,93503.0,0.0576]
[1764821722981,0.08616042,93504.0,93503.0,0.0576]
[1764821724179,0.03016042,93504.0,93503.0,0.0586]
[1764821725184,0.03016042,93504.0,93503.0,0.0576]
[1764821725388,0.03016042,93504.0,93503.0,0.0606]
[1764821725588,0.00016042,93504.0,93503.0,0.0606]
[1764821725781,0.03016042,93504.0,93503.0,0.0606]
[1764821725980,0.03016042,93504.0,93503.0,0.0616]
[1764821726784,0.03016042,93504.0,93503.0,0.0606]
[1764821726986,0.03016042,93504.0,93503.0,0.0586]
[1764821727285,0.03016042,93504.0,93503.0,0.15762684]
[1764821728186,0.03016042,93504.0,93503.0,0.0616]
[1764821728782,0.03016042,93504.0,93503.0,0.0586]
[1764821728984,0.03016042,93504.0,93503.0,0.0616]
[1764821729183,0.05815042,93504.0,93503.0,0.0616]
[1764821730491,0.08616042,93504.0,93503.0,0.0626]
[1764821730990,0.08616042,93504.0,93503.0,0.0616]
[1764821731984,0.08616042,93504.0,93503.0,0.0606]
[1764821732185,0.08616042,93504.0,93503.0,0.0616]
[1764821732791,0.08616042,93504.0,93503.0,0.0606]
[1764821732993,0.08616042,93504.0,93503.0,0.0616]
[1764821733489,0.05955042,93504.0,93503.0,0.0616]
[1764821733690,0.05955042,93504.0,93503.0,0.0586]
[1764821733996,0.05955042,93504.0,93503.0,0.0616]
[1764821734194,0.03016042,93504.0,93503.0,0.0616]
[1764821734889,0.08715042,93504.0,93503.0,0.0616]
[1764821735791,0.03016042,93504.0,93503.0,0.0616]
[1764821735998,0.05699,93525.0,93524.0,0.05721]
[1764821736297,0.08699,93525.0,93524.0,0.05721]
[1764821737500,0.08799,93525.0,93524.0,0.05721]
[1764821738188,0.08899,93525.0,93524.0,0.05721]
[1764821738786,0.08799,93525.0,93524.0,0.05721]
[1764821739395,0.08699,93525.0,93524.0,0.05721]
[1764821739594,0.08699,93525.0,93524.0,0.05921]
[1764821739791,0.03,93525.0,93524.0,0.05921]
[1764821741392,0.03,93525.0,93524.0,0.06121]
[1764821742289,0.03,93525.0,93524.0,0.06221]
[1764821750199,0.08806,93525.0,93524.0,0.06221]
[1764821750399,0.08806,93525.0,93524.0,0.07886]
[1764821755504,0.08806,93525.0,93524.0,0.07786]
[1764821756012,0.08806,93525.0,93524.0,0.07886]
[1764821760303,0.08806,93525.0,93524.0,0.07486]
[1764821760609,0.08806,93525.0,93524.0,0.07786]
[1764821760795,0.08806,93525.0,93524.0,0.07686]
[1764821761000,0.08806,93525.0,93524.0,0.07786]
[1764821762010,0.08806,93525.0,93524.0,0.07486]
[1764821762309,0.08806,93525.0,93524.0,0.07886]
[1764821762719,0.08806,93525.0,93524.0,0.07786]
[1764821763601,0.08806,93525.0,93524.0,0.07686]
[1764821763809,0.08806,93525.0,93524.0,0.07886]
[1764821765204,0.08806,93525.0,93524.0,0.17077756]
[1764821765406,0.08806,93525.0,93524.0,0.17377756]
[1764821766108,0.08806,93525.0,93524.0,0.17277756]
[1764821766301,0.08806,93525.0,93524.0,0.17077756]
[1764821766501,0.08806,93525.0,93524.0,0.17477756]
[1764821766908,0.08806,93525.0,93524.0,0.17377756]
[1764821767104,0.08806,93525.0,93524.0,0.17477756]
[1764821767609,0.08806,93525.0,93524.0,0.07886]
[1764821771513,0.03,93525.0,93524.0,0.07886]
[1764821771811,0.00016042,93534.0,93533.0,0.0665005]
[1764821772012,0.15093037,93550.0,93549.0,0.05581]
[1764821772216,0.08613,93550.0,93549.0,0.05581]
[1764821772510,0.05613,93542.0,93541.0,0.0664995]
[1764821772717,0.08613,93542.0,93541.0,0.0664995]
[1764821774008,0.08613,93542.0,93541.0,0.0674995]
[1764821774918,0.08613,93542.0,93541.0,0.0704995]
[1764821775414,0.03,93542.0,93541.0,0.0704995]
[1764821775616,0.05629015,93551.0,93550.0,0.0664986]
[1764821775807,0.08629015,93551.0,93550.0,0.0664986]
[1764821778312,0.08629015,93551.0,93550.0,0.0674986]
[1764821782510,0.08629015,93551.0,93550.0,0.05681]
[1764821782907,0.08629015,93551.0,93550.0,0.001]
[1764821783215,0.08629015,93551.0,93540.0,0.0960984]
[1764821783216,0.0668205,93533.0,93532.0,0.00016042]
[1764821783420,0.0968205,93533.0,93532.0,0.00016042]
[1764821784117,0.0968205,93533.0,93517.0,0.0960984]
[1764821784118,0.0106913,93527.0,93519.0,0.0379421]
[1764821784328,0.05613,93520.0,93519.0,0.0379421]
[1764821784622,0.08613,93520.0,93519.0,0.0379421]
[1764821784811,0.08613,93520.0,93519.0,0.0665021]
[1764821785412,0.08613,93520.0,93519.0,0.0685021]
[1764821787225,0.08613,93520.0,93519.0,0.05781]
[1764821790831,0.10306,93520.0,93519.0,0.002]
[1764821792129,0.05613,93511.0,93510.0,0.10066042]
[1764821792316,0.08613,93511.0,93510.0,0.10066042]
[1764821792919,0.08613,93511.0,93510.0,0.04485042]
[1764821793324,0.08613,93511.0,93510.0,0.04585042]
[1764821793922,0.05946,93491.0,93490.0,0.0274]
[1764821794223,0.08946,93491.0,93490.0,0.0274]
[1764821794526,0.08946,93491.0,93490.0,0.05507]
[1764821794724,0.08946,93491.0,93490.0,0.0274]
[1764821795024,0.05946,93487.0,93486.0,0.06984315]
[1764821795226,0.08946,93487.0,93486.0,0.06984315]
[1764821796221,0.09046,93487.0,93486.0,0.02677315]
[1764821796919,0.09046,93487.0,93486.0,0.03077315]
[1764821798631,0.09046,93487.0,93486.0,0.08584315]
[1764821802231,0.09046,93487.0,93486.0,0.03077315]
[1764821803418,0.09046,93487.0,93486.0,0.02615972]
[1764821803823,0.09046,93487.0,93486.0,0.00263032]
[1764821804027,0.0673763,93482.0,93481.0,0.00016042]
[1764821804222,0.0973763,93482.0,93481.0,0.00016042]
[1764821805818,0.1013763,93482.0,93481.0,0.00116042]
[1764821806222,0.1023763,93482.0,93481.0,0.01656081]
[1764821820438,0.1023763,93482.0,93481.0,0.04619081]
[1764821820834,0.1023763,93482.0,93481.0,0.07455081]
[1764821821035,0.1023763,93482.0,93481.0,0.01656081]
[1764821821741,0.05668,93457.0,93456.0,0.07477]
[1764821821947,0.08668,93457.0,93456.0,0.07477]
[1764821822338,0.08668,93457.0,93456.0,0.08996343]
[1764821822539,0.0973792,93457.0,93456.0,0.07318343]
[1764821822839,0.0973792,93457.0,93456.0,0.01719343]
[1764821823141,0.09747397,93457.0,93456.0,0.05999]
[1764821823340,0.09747397,93457.0,93456.0,0.07475854]
[1764821824036,0.09747397,93457.0,93456.0,0.07775854]
[1764821824241,0.09847397,93457.0,93456.0,0.07775854]
[1764821829035,0.09847397,93457.0,93456.0,0.01976854]
[1764821832444,0.12460865,93457.0,93456.0,0.01976854]
[1764821833242,0.09847397,93457.0,93456.0,0.01976854]
[1764821833542,0.09747397,93457.0,93456.0,0.01476854]
[1764821833740,0.10247397,93457.0,93456.0,0.001]
[1764821834140,0.10247397,93457.0,93456.0,0.01675155]
[1764821834537,0.10247397,93457.0,93456.0,0.07404155]
[1764821834740,0.10247397,93457.0,93456.0,0.04469155]
[1764821835248,0.10247397,93457.0,93456.0,0.01675155]
[1764821835740,0.10247397,93457.0,93456.0,5e-08]
[1764821835944,0.0673402,93448.0,93447.0,0.00016042]
[1764821836142,0.0973402,93448.0,93447.0,0.00016042]
[1764821836533,0.0973402,93448.0,93447.0,0.07342622]
[1764821836743,0.0973402,93448.0,93447.0,0.05745042]
[1764821836950,0.0973402,93448.0,93447.0,0.04432751]
[1764821837450,0.0973402,93448.0,93447.0,0.01638751]
[1764821837644,0.1063402,93448.0,93447.0,0.01738751]
[1764821838047,0.0983402,93448.0,93447.0,0.07467751]
[1764821838245,0.1063402,93448.0,93447.0,0.07467751]
[1764821839450,0.1053402,93448.0,93447.0,0.07467751]
[1764821839751,0.1043402,93448.0,93447.0,0.07367751]
[1764821840247,0.1033402,93448.0,93447.0,0.07367751]
[1764821840450,0.1043402,93448.0,93447.0,0.07367751]
[1764821840749,0.0983402,93448.0,93447.0,0.07367751]
[1764821840953,0.1043402,93448.0,93447.0,0.07367751]
[1764821842245,0.1043402,93448.0,93447.0,0.01638751]
[1764821843046,0.0983402,93448.0,93447.0,0.01638751]
[1764821843355,0.1043402,93448.0,93447.0,0.01638751]
[1764821843649,0.0983402,93448.0,93447.0,0.01638751]
[1764821843851,0.1043402,93448.0,93447.0,0.01638751]
[1764821844044,0.1033402,93448.0,93447.0,0.01638751]
[1764821844240,0.1043402,93448.0,93447.0,0.01638751]
[1764821844851,0.037,93448.0,93447.0,0.47367751]
[1764821845147,0.06749862,93466.0,93465.0,0.07429]
[1764821845351,0.09749862,93466.0,93465.0,0.07429]
[1764821845946,0.09755169,93466.0,93465.0,0.07429]
[1764821846548,0.10255169,93466.0,93465.0,0.07429]
[1764821846741,0.10355169,93466.0,93465.0,0.07429]
[1764821848555,0.10255169,93466.0,93465.0,0.07429]
[1764821850959,0.06285349,93466.0,93465.0,0.0849883]
[1764821851147,0.03521349,93466.0,93465.0,0.0849883]
[1764821851552,0.06285349,93466.0,93465.0,0.0849883]
[1764821852748,0.09185349,93466.0,93465.0,0.0849883]
[1764821855759,0.03521349,93466.0,93465.0,0.0849883]
[1764821861159,0.00521349,93466.0,93465.0,0.0849883]
[1764821862557,3.49e-06,93466.0,93465.0,0.0849883]
[1764821862762,0.0676662,93484.0,93483.0,0.05685]
[1764821862957,0.0976662,93484.0,93483.0,0.05685]
[1764821864358,0.0976662,93484.0,93483.0,0.0675462]
[1764821864359,0.03,93484.0,93483.0,0.0675462]
[1764821864559,0.034,93484.0,93483.0,0.0685462]
[1764821864751,0.036,93484.0,93483.0,0.0685462]
[1764821865455,0.034,93484.0,93483.0,0.0685462]
[1764821865665,0.03,93484.0,93483.0,0.0675462]
[1764821865859,0.031,93484.0,93483.0,0.0705462]
[1764821867266,0.03,93484.0,93483.0,0.0675462]
[1764821867457,0.031,93484.0,93483.0,0.0705462]
[1764821867866,0.03,93484.0,93483.0,0.0675462]
[1764821868064,0.031,93484.0,93483.0,0.0705462]
[1764821868461,0.08732,93484.0,93483.0,0.0705462]
[1764821868765,0.08732,93484.0,93483.0,0.05985]
[1764821870258,0.08732,93484.0,93483.0,0.003]
[1764821870658,0.0674171,93475.0,93474.0,1e-08]
[1764821870854,0.0974171,93475.0,93474.0,1e-08]
[1764821871858,0.0984171,93475.0,93474.0,0.00200001]
[1764821874857,0.0984171,93475.0,93450.0,0.05913]
[1764821874858,0.0674199,93451.0,93450.0,0.05913]
[1764821875062,0.0974199,93451.0,93450.0,0.05913]
[1764821876864,0.0974199,93451.0,93450.0,0.06013]
[1764821877070,0.0984199,93451.0,93450.0,0.06513]
[1764821877270,0.0984199,93451.0,93450.0,0.006]
[1764821877861,0.0984199,93451.0,93450.0,0.03591]
[1764821878262,0.0984199,93451.0,93450.0,0.08258]
[1764821879967,0.08772,93451.0,93450.0,0.08258]
[1764821881364,0.031,93451.0,93450.0,0.08258]
[1764821881570,0.031,93451.0,93450.0,0.09328]
[1764821881979,0.001,93451.0,93450.0,0.09328]
[1764821882365,0.031,93451.0,93450.0,0.08258]
[1764821885660,0.001,93451.0,93450.0,0.08258]
[1764821887672,0.031,93451.0,93450.0,0.08258]
[1764821888074,0.09003,93451.0,93450.0,0.08258]
[1764821888276,0.09003,93451.0,93450.0,0.06513]
[1764821888777,0.031,93451.0,93450.0,0.08221]
[1764821889878,0.001,93451.0,93450.0,0.08221]
[1764821890080,0.031,93451.0,93450.0,0.08221]
[1764821890278,0.001,93451.0,93450.0,0.08221]
[1764821891072,0.031,93451.0,93450.0,0.08221]
[1764821892383,0.001,93451.0,93450.0,0.08221]
[1764821892783,0.00016051,93460.0,93450.0,0.08221]
[1764821892784,0.00016051,93460.0,93459.0,0.05493]
[1764821892984,0.03016051,93460.0,93459.0,0.05493]
[1764821893188,0.03016051,93460.0,93459.0,0.065629]
[1764821894277,0.03016051,93460.0,93459.0,0.068629]
[1764821894483,0.03116051,93460.0,93459.0,0.068629]
[1764821894683,0.08769051,93460.0,93459.0,0.05793]
[1764821895076,0.08769051,93460.0,93459.0,0.05893]
[1764821895779,0.08769051,93460.0,93459.0,0.03192]
[1764821895986,0.08769051,93460.0,93459.0,0.004]
[1764821899684,0.08769051,93460.0,93459.0,0.03192]
[1764821900485,0.08769051,93460.0,93459.0,0.05893]
[1764821901582,0.08769051,93460.0,93459.0,0.03192]
[1764821902085,0.08769051,93460.0,93459.0,0.004]
[1764821903092,0.05653,93447.0,93446.0,0.00026754]
[1764821903389,0.08653,93447.0,93446.0,0.00026754]
[1764821904883,0.08753,93447.0,93446.0,0.00026754]
[1764821905278,0.09153,93447.0,93446.0,4e-08]
[1764821907983,0.0107009,93442.0,93422.0,0.01708]
[1764821908181,0.0672331,93423.0,93422.0,0.02792]
[1764821908390,0.03,93423.0,93422.0,0.08898444]
[1764821908596,0.0157003,93447.0,93446.0,0.05493]
[1764821908895,0.0157003,93447.0,93446.0,0.0656305]
[1764821908896,0.034,93447.0,93446.0,0.0656305]
[1764821909282,0.03,93447.0,93446.0,0.0656305]
[1764821909690,0.00016051,93456.0,93455.0,0.0656294]
[1764821909895,0.03016051,93456.0,93455.0,0.0656294]
[1764821912700,0.03116051,93456.0,93455.0,0.0656294]
[1764821914898,0.03116051,93456.0,93455.0,0.05493]
[1764821915694,0.03016051,93456.0,93455.0,0.05493]
[1764821915902,0.03116051,93456.0,93455.0,0.0656294]
[1764821917792,0.03216051,93456.0,93455.0,0.0656294]
[1764821918296,0.03216051,93456.0,93455.0,0.05493]
[1764821918599,0.03116051,93456.0,93455.0,0.05493]
[1764821920190,0.06014051,93456.0,93455.0,0.05493]
[1764821920398,0.03116051,93456.0,93455.0,0.05493]
[1764821923799,0.00116051,93456.0,93455.0,0.05493]
[1764821924097,0.0106975,93472.0,93471.0,0.05704]
[1764821924305,0.0406975,93472.0,93471.0,0.05704]
[1764821925609,0.0446975,93472.0,93471.0,0.05704]
[1764821926106,0.0456975,93472.0,93471.0,0.05704]
[1764821926301,0.0746775,93472.0,93471.0,0.05704]
[1764821927402,0.0736775,93472.0,93471.0,0.05804]
[1764821927599,0.034,93472.0,93471.0,0.05804]
[1764821930098,0.004,93472.0,93471.0,0.05804]
[1764821932812,0.00016051,93481.0,93480.0,0.0845466]
[1764821934012,0.00616051,93481.0,93480.0,0.0855466]
[1764821934413,0.03616051,93481.0,93480.0,0.0855466]
[1764821934605,0.00616051,93481.0,93480.0,0.0855466]
[1764821936312,0.09470051,93481.0,93480.0,0.07485]
[1764821936507,0.09470051,93481.0,93480.0,0.05804]
[1764821940822,0.09470051,93481.0,93480.0,0.001]
[1764821941007,0.09470051,93481.0,93480.0,0.07485]
[1764821942410,0.06514051,93481.0,93480.0,0.07485]
[1764821942604,0.03616051,93481.0,93480.0,0.07485]
[1764821947914,0.07656701,93481.0,93480.0,0.07485]
[1764821948716,0.10605701,93481.0,93480.0,0.07485]
[1764821949314,0.00616051,93481.0,93480.0,0.0855466]
[1764821949620,0.04616051,93481.0,93480.0,0.0855466]
[1764821950016,0.00616051,93481.0,93480.0,0.0855466]
[1764821951220,0.09536051,93481.0,93480.0,0.07485]
[1764821951923,0.09536051,93481.0,93480.0,0.03078]
[1764821952426,0.09536051,93481.0,93480.0,0.001]
[1764821953322,0.03616051,93481.0,93480.0,0.05772]
[1764821958234,0.09536051,93481.0,93480.0,0.05772]
[1764821960436,0.09536051,93481.0,93480.0,0.07572]
[1764821961439,0.09536051,93481.0,93480.0,0.05772]
[1764821961830,0.09536051,93481.0,93480.0,0.07572]
[1764821968141,0.09536051,93481.0,93480.0,0.001]
[1764821968543,0.09536051,93481.0,93480.0,0.05772]
[1764821970750,0.09536051,93481.0,93480.0,0.03025]
[1764821970946,0.09536051,93481.0,93480.0,0.001]
[1764821972754,0.0592,93463.0,93462.0,0.00016051]
[1764821973055,0.0892,93463.0,93462.0,0.05688051]
[1764821974250,0.0892,93463.0,93462.0,0.07442051]
[1764821975454,0.0892,93463.0,93462.0,0.07642051]
[1764821975654,0.0902,93463.0,93462.0,0.07642051]
[1764821979656,0.0902,93463.0,93462.0,0.05888051]
[1764821981454,0.031,93463.0,93462.0,0.07642051]
[1764821981758,0.08612,93463.0,93462.0,0.07642051]
[1764821984758,0.08939,93463.0,93462.0,0.07642051]
[1764821986570,0.031,93463.0,93462.0,0.07642051]
[1764821987471,0.001,93463.0,93462.0,0.07642051]
[1764821987765,0.0690867,93479.0,93478.0,0.05607]
[1764821987969,0.0990867,93479.0,93478.0,0.05607]
[1764821988769,0.00026742,93486.0,93480.0,0.07349]
[1764821988971,0.03016051,93481.0,93480.0,0.07349]
[1764821989167,0.00026742,93486.0,93480.0,0.07349]
[1764821989470,0.03026742,93486.0,93485.0,0.05607]
[1764821990264,0.03026742,93486.0,93485.0,0.066766]
[1764821990463,0.08865742,93486.0,93485.0,0.05607]
[1764821991459,0.09265742,93486.0,93485.0,0.05607]
[1764821991867,0.09365742,93486.0,93485.0,0.05607]
[1764821992368,0.08965742,93486.0,93485.0,0.05707]
[1764821992574,0.09365742,93486.0,93485.0,0.05707]
[1764821993276,0.09365742,93486.0,93485.0,0.02923]
[1764821993774,0.09365742,93486.0,93485.0,0.05707]
[1764821997269,0.10210742,93486.0,93485.0,0.001]
[1764821998178,0.0690878,93469.0,93468.0,0.05607]
[1764821998483,0.0990878,93469.0,93468.0,0.05607]
[1764822000773,0.1000878,93469.0,93468.0,0.05707]
[1764822001780,0.1010878,93469.0,93468.0,0.05707]
[1764822002274,0.0990878,93469.0,93468.0,0.05707]
[1764822002480,0.1000878,93469.0,93468.0,0.05707]
[1764822004180,0.1000878,93469.0,93468.0,0.001]
[1764822005173,0.1000878,93469.0,93468.0,0.05995]
[1764822010486,0.1000878,93469.0,93468.0,0.03087]
[1764822011082,0.1000878,93469.0,93468.0,0.05995]
[1764822012686,0.031,93469.0,93468.0,0.0706479]
[1764822013282,0.08859,93469.0,93468.0,0.0706479]
[1764822013776,0.08859,93469.0,93468.0,0.05995]
[1764822017386,0.08859,93469.0,93468.0,0.001]
[1764822019490,0.08859,93469.0,93468.0,0.03087]
[1764822020086,0.08859,93469.0,93468.0,0.001]
[1764822021881,0.08859,93469.0,93468.0,0.05995]
[1764822022886,0.08859,93469.0,93468.0,0.03087]
[1764822023695,0.08859,93469.0,93468.0,0.05995]
[1764822026793,0.08859,93469.0,93468.0,0.001]
[1764822029491,0.05759,93463.0,93462.0,0.00016051]
[1764822029697,0.08759,93463.0,93462.0,0.00016051]
[1764822030184,0.0982885,93463.0,93462.0,0.00016051]
[1764822030994,0.0982885,93463.0,93462.0,0.00116051]
[1764822031184,0.0992885,93463.0,93462.0,0.00116051]
[1764822032298,0.0992885,93463.0,93462.0,0.03103051]
[1764822032601,0.0982885,93463.0,93462.0,0.03003051]
[1764822032801,0.0992885,93463.0,93462.0,0.03103051]
[1764822033002,0.0992885,93463.0,93462.0,0.06011051]
[1764822033306,0.0992885,93463.0,93462.0,0.07669051]
[1764822035295,0.0992885,93463.0,93462.0,0.06011051]
[1764822037202,0.0992885,93463.0,93462.0,0.07802051]
[1764822041203,0.031,93463.0,93462.0,0.07802051]
[1764822044598,0.001,93463.0,93462.0,0.07802051]
[1764822044900,0.031,93463.0,93462.0,0.07802051]
[1764822045105,0.05969,93463.0,93462.0,0.07802051]
[1764822046295,0.08919,93463.0,93462.0,0.07802051]
[1764822048209,0.031,93463.0,93462.0,0.07802051]
[1764822048915,0.08919,93463.0,93462.0,0.07802051]
[1764822050002,0.031,93463.0,93462.0,0.07802051]
[1764822053805,0.00016051,93472.0,93471.0,0.02889]
[1764822054011,0.03016051,93472.0,93471.0,0.0694676]
[1764822054206,0.06954801,93472.0,93471.0,0.05877]
[1764822054721,0.05885051,93472.0,93471.0,0.05877]
[1764822054918,0.06285051,93472.0,93471.0,0.05977]
[1764822055618,0.06385051,93472.0,93471.0,0.05977]
[1764822055809,0.05985051,93472.0,93471.0,0.05877]
[1764822056010,0.09235051,93472.0,93471.0,0.05977]
[1764822056219,0.09135051,93472.0,93471.0,0.05977]
[1764822056409,0.09235051,93472.0,93471.0,0.05977]
[1764822059709,0.09135051,93472.0,93471.0,0.05977]
[1764822059906,0.09235051,93472.0,93471.0,0.05977]
[1764822060906,0.03116051,93472.0,93471.0,0.05877]
[1764822061110,0.03316051,93472.0,93471.0,0.05977]
[1764822062015,0.03016051,93472.0,93471.0,0.05877]
[1764822062316,0.03116051,93472.0,93471.0,0.05877]
[1764822065215,0.05985051,93472.0,93471.0,0.05877]
[1764822066521,0.08979051,93472.0,93471.0,0.05877]
[1764822068316,0.0687982,93466.0,93465.0,0.07423]
[1764822068516,0.0987982,93466.0,93465.0,0.05727]
[1764822070425,0.0997982,93466.0,93465.0,0.05727]
[1764822074730,0.0891,93466.0,93465.0,0.05727]
[1764822078332,0.0581,93463.0,93462.0,0.12428666]
[1764822078633,0.0881,93463.0,93462.0,0.05743051]
[1764822079534,0.0881,93463.0,93462.0,0.00016051]
[1764822080431,0.0891,93463.0,93462.0,0.00016051]
[1764822081333,0.4891,93463.0,93462.0,1e-08]
[1764822084034,0.98566,93463.0,93462.0,1e-08]
[1764822086537,0.58566,93463.0,93462.0,1e-08]
[1764822086731,0.0891,93463.0,93462.0,0.02810001]
[1764822086937,0.5276,93463.0,93462.0,1e-08]
[1764822087730,0.068801,93441.0,93440.0,0.07423]
[1764822087933,0.098801,93441.0,93440.0,0.07423]
[1764822089140,0.100801,93441.0,93440.0,0.07523]
[1764822090245,0.100801,93441.0,93440.0,0.001]
[1764822090540,0.100801,93441.0,93440.0,0.004]
[1764822090848,0.032,93441.0,93440.0,0.06127]
[1764822091145,0.002,93441.0,93440.0,0.06127]
[1764822091746,0.032,93441.0,93440.0,0.06127]
[1764822094939,0.08863,93441.0,93440.0,0.06127]
[1764822096432,0.08863,93441.0,93440.0,0.0321]
[1764822096633,0.08863,93441.0,93440.0,0.004]
[1764822097145,0.08863,93441.0,93440.0,0.03193]
[1764822098237,0.099331,93441.0,93440.0,0.004]
[1764822102538,0.097331,93441.0,93440.0,0.003]
[1764822102742,0.0673321,93432.0,93431.0,0.05598051]
[1764822102943,0.0973321,93432.0,93431.0,0.05598051]
[1764822103149,0.1091021,93432.0,93431.0,0.00016051]
[1764822105153,0.1101021,93432.0,93431.0,0.00016051]
[1764822115055,0.1101021,93432.0,93431.0,0.03003051]
[1764822115462,0.0983321,93432.0,93431.0,0.05739051]
[1764822120258,0.0983321,93432.0,93431.0,0.03003051]
[1764822120457,0.0983321,93432.0,93431.0,0.00016051]
[1764822123765,0.0983321,93432.0,93422.0,0.01697444]
[1764822123766,0.0657031,93423.0,93422.0,0.01697444]
[1764822123967,0.0657031,93423.0,93405.0,0.11355615]
[1764822123968,0.0657037,93418.0,93410.0,0.07679681]
[1764822124165,0.0657037,93418.0,93417.0,0.01592377]
[1764822124166,0.0957037,93418.0,93417.0,0.01592377]
[1764822124360,0.0957037,93418.0,93417.0,8.646e-05]
[1764822124670,0.0957037,93418.0,93417.0,0.05847646]
[1764822125461,0.0967037,93418.0,93417.0,0.05947646]
[1764822125660,0.0967037,93418.0,93417.0,0.0768832]
[1764822128171,0.05899,93418.0,93417.0,0.0768832]
[1764822128374,0.086,93418.0,93417.0,0.0768832]
[1764822132274,0.086,93418.0,93417.0,0.0184932]
[1764822135570,0.0657063,93395.0,93393.0,0.07679681]
[1764822135890,0.055,93394.0,93393.0,0.07314487]
[1764822136073,0.085,93394.0,93393.0,0.01475487]
[1764822136272,0.055,93388.0,93387.0,0.05839]
[1764822136476,0.085,93388.0,93387.0,0.05839]
[1764822136776,0.08508646,93388.0,93387.0,0.05839]
[1764822137083,0.001,93394.0,93393.0,0.0710965]
[1764822137376,0.065704,93415.0,93414.0,0.05839]
[1764822137582,0.105704,93415.0,93414.0,0.05839]
[1764822140082,0.106704,93415.0,93414.0,0.05839]
[1764822140894,0.096,93415.0,93414.0,0.05839]
[1764822142387,0.11313,93415.0,93414.0,0.05839]
[1764822143079,0.041,93415.0,93414.0,0.05839]
[1764822143685,0.06899,93415.0,93414.0,0.05839]
[1764822143882,0.096,93415.0,93414.0,0.05839]
[1764822148406,0.1135,93415.0,93414.0,0.05839]
[1764822155188,0.041,93415.0,93414.0,0.05839]
[1764822157691,0.001,93415.0,93414.0,0.05839]
[1764822157895,0.031,93415.0,93414.0,0.05839]
[1764822159601,0.08719,93415.0,93414.0,0.05839]
[1764822159893,0.097894,93415.0,93414.0,0.05839]
[1764822160899,0.0843248,93408.0,93407.0,0.07692685]
[1764822161089,0.1143248,93408.0,93407.0,0.13257685]
[1764822161592,0.1143248,93408.0,93407.0,0.05565]
[1764822162096,0.08619,93408.0,93407.0,0.05565]
[1764822162294,0.08719,93408.0,93407.0,0.05665]
[1764822165391,0.08719,93408.0,93407.0,0.0673549]
[1764822165598,0.08719,93408.0,93407.0,0.14428175]
[1764822165893,0.05904,93408.0,93407.0,0.0673549]
[1764822166289,0.08719,93408.0,93407.0,0.0673549]